fUSD/lending_fUSD_20250124
["ID","MTS","AMOUNT","RATE_DAILY","PERIOD"]
[350255164,1737739853269,-500.0,0.00019182,2]
[350255165,1737739853278,-500.0,0.00019182,2]
[350255166,1737739853288,-1760.97,0.00019182,2]
[350255167,1737739853297,-500.0,0.00019182,2]
[350255168,1737739853307,-637.95,0.00019182,2]
[350255169,1737739853318,-500.0,0.00019182,2]
[350255170,1737739853327,-500.0,0.00019182,2]
[350255171,1737739853337,-500.0,0.00019182,2]
[350255172,1737739853347,-500.0,0.00019182,2]
[350255173,1737739853357,-500.0,0.00019182,2]
[350255174,1737739853367,-500.0,0.00019182,2]
[350255175,1737739853376,-500.0,0.00019182,2]
[350255176,1737739853386,-500.0,0.00019182,2]
[350255177,1737739853395,-1098.43,0.00019182,2]
[350255178,1737739853405,-500.0,0.00019182,2]
[350255179,1737739853414,-500.0,0.00019182,2]
[350255180,1737739853424,-500.0,0.00019182,2]
[350255181,1737739853436,-500.0,0.00019182,2]
[350255182,1737739853447,-500.0,0.00019182,2]
[350255183,1737739853456,-537.46,0.00019182,2]
[350255184,1737739853466,-500.0,0.00019183,2]
[350255185,1737739853476,-500.0,0.00019183,2]
[350255186,1737739853486,-500.0,0.00019183,2]
[350255187,1737739853495,-500.0,0.00019183,2]
[350255188,1737739853504,-500.0,0.00019183,2]
[350255189,1737739853514,-500.0,0.00019183,2]
[350255190,1737739853523,-500.0,0.00019183,2]
[350255191,1737739853533,-500.0,0.00019183,2]
[350255192,1737739853542,-500.0,0.00019183,2]
[350255193,1737739853552,-500.0,0.00019183,2]
[350255194,1737739853562,-500.0,0.00019183,2]
[350255195,1737739853571,-641.04786936,0.00019183,2]
[350255196,1737739853580,-500.0,0.00019183,2]
[350255197,1737739853590,-500.0,0.00019183,2]
[350255198,1737739853600,-500.0,0.00019183,2]
[350255199,1737739853610,-500.0,0.00019183,2]
[350255200,1737739853621,-500.0,0.00019183,2]
[350255201,1737739853630,-500.0,0.00019183,2]
[350255202,1737739853639,-500.0,0.00019183,2]
[350255203,1737739853650,-500.0,0.00019183,2]
[350255204,1737739853661,-500.0,0.00019183,2]
[350255205,1737739853670,-500.0,0.00019183,2]
[350255206,1737739853680,-500.0,0.00019183,2]
[350255207,1737739853689,-500.0,0.00019183,2]
[350255208,1737739853699,-441.23288377,0.00019183,2]
[350255209,1737739853708,-500.0,0.00019183,2]
[350255210,1737739853718,-500.0,0.00019183,2]
[350255211,1737739853728,-500.0,0.00019183,2]
[350255212,1737739853738,-500.0,0.00019183,2]
[350255213,1737739853748,-500.0,0.00019183,2]
[350255214,1737739853758,-256.43521772,0.00019183,2]
[350255215,1737739853768,-500.0,0.00019183,2]
[350255216,1737739853778,-500.0,0.00019183,2]
[350255217,1737739853787,-500.0,0.00019183,2]
[350255218,1737739853796,-500.0,0.00019183,2]
[350255219,1737739853806,-500.0,0.00019183,2]
[350255220,1737739853815,-500.0,0.00019183,2]
[350255221,1737739853825,-500.0,0.00019183,2]
[350255222,1737739853835,-500.0,0.00019183,2]
[350255223,1737739853844,-500.0,0.00019183,2]
[350255224,1737739853857,-2025.83,0.000192,2]
[350255225,1737739853867,-1000.0,0.000192,3]
[350255226,1737739853876,-1000.0,0.000192,3]
[350255227,1737739853886,-1000.0,0.000192,2]
[350255228,1737739853896,-814.92451592,0.000192,2]
[350255229,1737739854094,-185.07548408,0.000192,2]
[350255230,1737739854107,-1000.0,0.000192,2]
[350255231,1737739854117,-412.11851508,0.0001921,2]
[350255232,1737739854130,-2090.15280492,0.0001921,2]
[350255233,1737739854139,-150.0,0.00019266,2]
[350255234,1737739854149,-638.0,0.00019288,2]
[350255235,1737739854159,-200.0,0.00019292,2]
[350255236,1737739854169,-1000.0,0.000193,2]
[350255237,1737739854179,-1000.0,0.000193,2]
[350255238,1737739854189,-1000.0,0.000193,2]
[350255239,1737739854199,-1000.0,0.000193,2]
[350255240,1737739854208,-264.50708624,0.000193,2]
[350255241,1737739854218,-186.25934196,0.000193,2]
[350255242,1737739854230,-158.94068353,0.000193,2]
[350255243,1737739854240,-150.0,0.00019312,2]
[350255244,1737739854251,-612.3,0.00019318,2]
[350255245,1737739854262,-500.0,0.00019318,2]
[350255246,1737739854273,-500.0,0.00019318,2]
[350255247,1737739854284,-500.0,0.00019318,2]
[350255248,1737739854294,-500.0,0.00019318,2]
[350255249,1737739854305,-142.05013499,0.00019318,2]
[350255250,1737739854327,-603.79,0.00018907,2]
[350255251,1737739854337,-242.81161378,0.00019318,2]
[350255263,1737740570683,156.0,0.00019,60]
[350255264,1737740845132,-537.262539,0.00016168,2]
[350255265,1737740845154,-172.14663798,0.0001625,2]
[350255266,1737740845176,-264.0,0.00016349,2]
[350255267,1737740845197,-8707.38441488,0.0001635,2]
[350255268,1737740962112,-433.46229177,0.0001635,2]
[350255269,1737740964102,-859.2645385,0.0001635,2]
[350255270,1737740964125,-348.7520615,0.0001635,2]
[350255271,1737740971096,-55.9179385,0.0001635,2]
[350255272,1737740971120,-150.0,0.00017268,2]
[350255278,1737741031713,-150.0,0.00017247,2]
[350255279,1737741031722,-250.0,0.00017534,2]
[350255280,1737741031731,-17.2,0.00017841,2]
[350255281,1737741031743,-170.74,0.00017841,2]
[350255282,1737741031752,-748.25,0.00017853,2]
[350255283,1737741031762,-1000.0,0.00017871,2]
[350255284,1737741031772,-827.23666339,0.00017871,2]
[350255285,1737741031781,-177.54,0.00017873,2]
[350255286,1737741031793,-155.29,0.00017976,2]
[350255287,1737741031802,-500.0,0.00018068,2]
[350255288,1737741031811,-629.37483188,0.00018068,2]
[350255289,1737741031827,-170.62516812,0.00018068,2]
[350255290,1737741031836,-368.68,0.00018082,2]
[350255291,1737741031846,-254.77,0.00018294,2]
[350255292,1737741031856,-150.0,0.00018296,2]
[350255293,1737741031867,-150.0,0.00018301,2]
[350255294,1737741031888,-150.0,0.00018382,2]
[350255295,1737741031899,-150.0,0.00018445,2]
[350255296,1737741031908,-150.0,0.00018558,2]
[350255297,1737741031918,-404.67,0.00018614,2]
[350255298,1737741031928,-150.0,0.00018634,2]
[350255299,1737741031937,-4.75976788,0.00018658,2]
[350255300,1737741031979,-145.24023212,0.00018658,2]
[350255301,1737741031989,-187.94,0.00018734,2]
[350255302,1737741031999,-368.68,0.00018751,2]
[350255303,1737741032008,-200.0,0.00018759,2]
[350255304,1737741032018,-200.0,0.00018801,2]
[350255305,1737741032027,-394.90110538,0.00018846,2]
[350255306,1737741032037,-200.0,0.00018869,2]
[350255307,1737741032046,-300.0,0.00018905,2]
[350255308,1737741032055,-167.42,0.00018906,2]
[350255309,1737741032065,-249.67,0.00018906,2]
[350255310,1737741032075,-251.48,0.00018906,2]
[350255311,1737741032084,-247.81,0.00018906,2]
[350255312,1737741032094,-253.08,0.00018906,2]
[350255313,1737741032103,-246.85,0.00018906,2]
[350255314,1737741032113,-252.1,0.00018906,2]
[350255315,1737741032123,-500.0,0.00018907,2]
[350255316,1737741032132,-500.0,0.00018907,2]
[350255317,1737741032142,-500.0,0.00018907,2]
[350255318,1737741032152,-500.0,0.00018907,2]
[350255319,1737741032161,-500.0,0.00018907,2]
[350255320,1737741032171,-540.51144588,0.00018907,2]
[350255321,1737741032181,-500.0,0.00018907,2]
[350255322,1737741032191,-500.0,0.00018907,2]
[350255323,1737741032200,-500.0,0.00018907,2]
[350255324,1737741032209,-500.0,0.00018907,2]
[350255325,1737741032219,-500.0,0.00018907,2]
[350255326,1737741032229,-500.0,0.00018907,2]
[350255327,1737741032238,-500.0,0.00018907,2]
[350255328,1737741032247,-500.0,0.00018907,2]
[350255329,1737741032257,-500.0,0.00018907,2]
[350255330,1737741032266,-500.0,0.00018907,2]
[350255331,1737741032275,-529.67936903,0.00018907,2]
[350255332,1737741032286,-500.0,0.00018907,2]
[350255333,1737741032295,-500.0,0.00018907,2]
[350255334,1737741032304,-500.0,0.00018907,2]
[350255335,1737741032314,-500.0,0.00018907,2]
[350255336,1737741032323,-500.0,0.00018907,2]
[350255337,1737741032332,-500.0,0.00018907,2]
[350255338,1737741032341,-500.0,0.00018907,2]
[350255339,1737741032350,-500.0,0.00018907,2]
[350255340,1737741032360,-500.0,0.00018907,2]
[350255341,1737741032370,-500.0,0.00018907,2]
[350255342,1737741032380,-500.0,0.00018907,2]
[350255343,1737741032390,-500.74570857,0.00018907,2]
[350255344,1737741032399,-500.0,0.00018907,2]
[350255345,1737741032414,-500.0,0.00018907,2]
[350255346,1737741032423,-229.92466194,0.00018907,2]
[350255347,1737741032433,-500.0,0.00018907,2]
[350255348,1737741032443,-500.0,0.00018907,2]
[350255349,1737741032453,-500.0,0.00018907,2]
[350255350,1737741032462,-447.2169085,0.00018907,2]
[350255351,1737741032471,-198.932043,0.00018907,2]
[350255352,1737741032481,-281.44180338,0.00018907,2]
[350255353,1737741032490,-500.0,0.00018907,2]
[350255354,1737741032500,-500.0,0.00018907,2]
[350255355,1737741032509,-500.0,0.00018907,2]
[350255356,1737741032519,-500.0,0.00018907,2]
[350255357,1737741032529,-500.0,0.00018907,2]
[350255358,1737741032539,-500.0,0.00018907,2]
[350255359,1737741032548,-500.0,0.00018907,2]
[350255360,1737741032557,-500.0,0.00018907,2]
[350255361,1737741032567,-500.0,0.00018907,2]
[350255362,1737741032576,-500.0,0.00018907,2]
[350255363,1737741032586,-500.0,0.00018907,2]
[350255364,1737741032595,-500.0,0.00018907,2]
[350255365,1737741032605,-500.0,0.00018907,2]
[350255366,1737741032615,-500.0,0.00018907,2]
[350255367,1737741032624,-500.0,0.00018907,2]
[350255368,1737741032634,-500.0,0.00018907,2]
[350255369,1737741032643,-500.0,0.00018907,2]
[350255370,1737741032653,-500.0,0.00018907,2]
[350255371,1737741032662,-500.0,0.00018907,2]
[350255372,1737741032671,-500.0,0.00018907,2]
[350255373,1737741032680,-500.0,0.00018907,2]
[350255374,1737741032689,-500.0,0.00018907,2]
[350255375,1737741032699,-198.39247819,0.00018907,2]
[350255376,1737741032709,-500.0,0.00018907,2]
[350255377,1737741032720,-500.0,0.00018907,2]
[350255378,1737741032729,-500.0,0.00018907,2]
[350255379,1737741032739,-500.0,0.00018907,2]
[350255380,1737741032748,-500.0,0.00018907,2]
[350255381,1737741032759,-500.0,0.00018907,2]
[350255382,1737741032772,-216.9,0.00018907,2]
[350255383,1737741032784,-248.67,0.00018907,2]
[350255384,1737741032796,-248.91,0.00018907,2]
[350255385,1737741032807,-250.92,0.00018907,2]
[350255386,1737741032818,-253.48,0.00018907,2]
[350255387,1737741032830,-207.26651421,0.00018908,2]
[350255388,1737741032840,-500.0,0.00018908,2]
[350255389,1737741032851,-218.11091749,0.00018908,2]
[350255390,1737741032861,-161.15973808,0.00018908,2]
[350255391,1737741032871,-500.0,0.00018908,2]
[350255392,1737741032880,-501.20683062,0.00018908,2]
[350255393,1737741032891,-500.0,0.00018908,2]
[350255394,1737741032900,-379.01686349,0.00018908,2]
[350255395,1737741032914,-500.0,0.00018908,2]
[350255396,1737741032924,-500.0,0.00018908,2]
[350255397,1737741032934,-500.0,0.00018908,2]
[350255398,1737741032944,-500.0,0.00018908,2]
[350255399,1737741032956,-500.0,0.00018908,2]
[350255400,1737741032966,-510.93467353,0.00018908,2]
[350255401,1737741032975,-211.83412556,0.00018908,2]
[350255402,1737741032985,-501.22100309,0.00018908,2]
[350255403,1737741032996,-500.0,0.00018908,2]
[350255404,1737741033006,-158.08267869,0.00018908,2]
[350255405,1737741033015,-504.56395243,0.00018908,2]
[350255406,1737741033025,-501.0505928,0.00018908,2]
[350255407,1737741033035,-506.46286156,0.00018908,2]
[350255408,1737741033045,-513.85971923,0.00018908,2]
[350255409,1737741033055,-879.31,0.00018972,2]
[350255410,1737741033065,-500.0,0.00018986,2]
[350255411,1737741033075,-492.5275631,0.00019012,2]
[350255412,1737741033085,-394.90110538,0.0001903,2]
[350255413,1737741033095,-500.0,0.00019044,2]
[350255414,1737741033105,-500.0,0.00019044,2]
[350255415,1737741033115,-500.0,0.00019044,2]
[350255416,1737741033125,-349.12906167,0.00019044,2]
[350255417,1737741033135,-500.0,0.00019044,2]
[350255418,1737741033145,-500.0,0.00019044,2]
[350255419,1737741033155,-500.0,0.00019044,2]
[350255420,1737741033165,-500.0,0.00019044,2]
[350255421,1737741033175,-500.0,0.00019044,2]
[350255422,1737741033185,-500.0,0.00019044,2]
[350255423,1737741033195,-500.0,0.00019044,2]
[350255424,1737741033204,-500.0,0.00019044,2]
[350255425,1737741033214,-500.0,0.00019044,2]
[350255426,1737741033224,-500.0,0.00019044,2]
[350255427,1737741033234,-231.45635258,0.00019044,2]
[350255428,1737741033246,-500.0,0.00019044,2]
[350255429,1737741033256,-500.0,0.00019044,2]
[350255430,1737741033266,-500.0,0.00019044,2]
[350255431,1737741033276,-500.0,0.00019044,2]
[350255432,1737741033286,-500.0,0.00019044,2]
[350255433,1737741033296,-500.0,0.00019044,2]
[350255434,1737741033306,-500.0,0.00019044,2]
[350255435,1737741033315,-500.0,0.00019044,2]
[350255436,1737741033325,-500.0,0.00019044,2]
[350255437,1737741033336,-324.39141777,0.00019044,2]
[350255438,1737741033346,-500.0,0.00019044,2]
[350255439,1737741033355,-500.0,0.00019044,2]
[350255440,1737741033365,-500.0,0.00019044,2]
[350255441,1737741033376,-500.0,0.00019044,2]
[350255442,1737741033386,-500.0,0.00019044,2]
[350255443,1737741033396,-500.0,0.00019044,2]
[350255444,1737741033406,-500.0,0.00019044,2]
[350255445,1737741033416,-500.0,0.00019044,2]
[350255446,1737741033430,-500.0,0.00019044,2]
[350255447,1737741033440,-500.0,0.00019044,2]
[350255448,1737741033450,-500.0,0.00019044,2]
[350255449,1737741033460,-500.0,0.00019044,2]
[350255450,1737741033470,-500.0,0.00019044,2]
[350255451,1737741033481,-500.0,0.00019044,2]
[350255452,1737741033491,-500.0,0.00019044,2]
[350255453,1737741033501,-500.0,0.00019044,2]
[350255454,1737741033511,-500.0,0.00019044,2]
[350255455,1737741033521,-249.21,0.00019045,2]
[350255456,1737741033531,-211.90675767,0.00019045,2]
[350255457,1737741033542,-252.44652349,0.00019045,2]
[350255458,1737741033552,-306.16202311,0.00019045,2]
[350255459,1737741033562,-500.0,0.00019045,2]
[350255460,1737741033572,-502.02025939,0.00019045,2]
[350255461,1737741033582,-176.17081813,0.0001908,2]
[350255462,1737741033592,-1189.1829,0.00019081,2]
[350255463,1737741033602,-4143.9329,0.00019081,2]
[350255464,1737741033612,-5000.0,0.00019081,2]
[350255465,1737741033621,-150.0,0.00019091,2]
[350255466,1737741033631,-2085.2261,0.0001912,2]
[350255467,1737741033641,-150.0,0.00019149,2]
[350255468,1737741033651,-800.0,0.00019164,2]
[350255469,1737741033661,-150.0,0.00019169,2]
[350255470,1737741033670,-176.1708181,0.00019171,2]
[350255471,1737741033680,-500.0,0.0001918,2]
[350255472,1737741033689,-500.0,0.0001918,2]
[350255473,1737741033699,-500.0,0.0001918,2]
[350255474,1737741033709,-500.0,0.0001918,2]
[350255475,1737741033719,-500.0,0.0001918,2]
[350255476,1737741033729,-500.0,0.0001918,2]
[350255477,1737741033739,-500.0,0.0001918,2]
[350255478,1737741033749,-500.0,0.0001918,2]
[350255479,1737741033759,-500.0,0.0001918,2]
[350255480,1737741033769,-500.0,0.0001918,2]
[350255481,1737741033779,-500.0,0.0001918,2]
[350255482,1737741033791,-500.0,0.0001918,2]
[350255483,1737741033801,-500.0,0.0001918,2]
[350255484,1737741033811,-500.0,0.0001918,2]
[350255485,1737741033823,-500.0,0.0001918,2]
[350255486,1737741033833,-263.71684967,0.0001918,2]
[350255487,1737741033843,-500.0,0.0001918,2]
[350255488,1737741033854,-500.0,0.0001918,2]
[350255489,1737741033865,-500.0,0.0001918,2]
[350255490,1737741033876,-500.0,0.0001918,2]
[350255491,1737741033885,-378.11445293,0.0001918,2]
[350255492,1737741033896,-500.0,0.0001918,2]
[350255493,1737741033906,-500.0,0.0001918,2]
[350255494,1737741033916,-500.0,0.0001918,2]
[350255495,1737741033926,-500.0,0.0001918,2]
[350255496,1737741033936,-500.0,0.0001918,2]
[350255497,1737741033945,-500.0,0.0001918,2]
[350255498,1737741033955,-500.0,0.0001918,2]
[350255499,1737741033965,-500.0,0.0001918,2]
[350255500,1737741033975,-500.0,0.0001918,2]
[350255501,1737741033985,-500.0,0.0001918,2]
[350255502,1737741033995,-500.0,0.0001918,2]
[350255503,1737741034005,-500.0,0.0001918,2]
[350255504,1737741034014,-500.0,0.0001918,2]
[350255505,1737741034024,-500.0,0.0001918,2]
[350255506,1737741034034,-500.0,0.0001918,2]
[350255507,1737741034044,-500.0,0.0001918,2]
[350255508,1737741034054,-500.0,0.0001918,2]
[350255509,1737741034063,-500.0,0.0001918,2]
[350255510,1737741034073,-500.0,0.0001918,2]
[350255511,1737741034082,-500.0,0.0001918,2]
[350255512,1737741034091,-500.0,0.0001918,2]
[350255513,1737741034102,-500.0,0.0001918,2]
[350255514,1737741034111,-500.0,0.0001918,2]
[350255515,1737741034121,-500.0,0.0001918,2]
[350255516,1737741034130,-412.702139,0.0001918,2]
[350255517,1737741034140,-500.0,0.0001918,2]
[350255518,1737741034150,-500.0,0.0001918,2]
[350255519,1737741034159,-500.0,0.0001918,2]
[350255520,1737741034169,-158.074461,0.0001918,2]
[350255521,1737741034179,-500.0,0.0001918,2]
[350255522,1737741034188,-500.0,0.0001918,2]
[350255523,1737741034198,-500.0,0.0001918,2]
[350255524,1737741034208,-500.0,0.0001918,2]
[350255525,1737741034217,-500.0,0.0001918,2]
[350255526,1737741034228,-555.12,0.0001918,2]
[350255527,1737741034237,-500.0,0.0001918,2]
[350255528,1737741034247,-500.0,0.0001918,2]
[350255529,1737741034257,-238.278031,0.0001918,2]
[350255530,1737741034267,-500.0,0.0001918,2]
[350255531,1737741034287,-500.0,0.0001918,2]
[350255532,1737741034300,-700.57,0.0001918,2]
[350255533,1737741034310,-578.63,0.0001918,2]
[350255534,1737741034321,-500.0,0.0001918,2]
[350255535,1737741034331,-500.0,0.0001918,2]
[350255536,1737741034340,-500.0,0.0001918,2]
[350255537,1737741034351,-500.0,0.0001918,2]
[350255538,1737741034360,-500.0,0.0001918,2]
[350255539,1737741034371,-500.0,0.0001918,2]
[350255540,1737741034380,-500.0,0.0001918,2]
[350255541,1737741034390,-1200.84,0.0001918,2]
[350255542,1737741034682,-500.0,0.0001918,2]
[350255543,1737741034692,-500.0,0.0001918,2]
[350255544,1737741034702,-500.0,0.0001918,2]
[350255545,1737741034711,-500.0,0.0001918,2]
[350255546,1737741034721,-500.0,0.0001918,2]
[350255547,1737741034731,-500.0,0.0001918,2]
[350255548,1737741034740,-500.0,0.0001918,2]
[350255549,1737741034750,-500.0,0.0001918,2]
[350255550,1737741034759,-500.0,0.0001918,2]
[350255551,1737741034769,-627.75,0.0001918,2]
[350255552,1737741034779,-500.0,0.0001918,2]
[350255553,1737741034791,-500.0,0.0001918,2]
[350255554,1737741034801,-543.58,0.0001918,2]
[350255555,1737741034810,-813.0,0.0001918,2]
[350255556,1737741034819,-500.0,0.0001918,2]
[350255557,1737741034829,-682.63,0.0001918,2]
[350255558,1737741034839,-516.06,0.0001918,2]
[350255559,1737741034848,-500.0,0.0001918,2]
[350255560,1737741034858,-500.0,0.0001918,2]
[350255561,1737741034868,-500.0,0.0001918,2]
[350255562,1737741034880,-500.0,0.0001918,2]
[350255563,1737741034892,-500.0,0.0001918,2]
[350255564,1737741034902,-921.41,0.0001918,2]
[350255565,1737741034911,-500.0,0.0001918,2]
[350255566,1737741034921,-1526.94,0.0001918,2]
[350255567,1737741034931,-619.05,0.0001918,2]
[350255568,1737741034940,-500.0,0.0001918,2]
[350255569,1737741034951,-2197.06,0.0001918,2]
[350255570,1737741034960,-500.0,0.0001918,2]
[350255571,1737741034970,-410.21606942,0.0001918,2]
[350255572,1737741034980,-500.0,0.0001918,2]
[350255573,1737741034989,-504.64,0.0001918,2]
[350255574,1737741034998,-1180.87,0.0001918,2]
[350255575,1737741035008,-500.0,0.0001918,2]
[350255576,1737741035017,-500.0,0.0001918,2]
[350255577,1737741035027,-500.0,0.0001918,2]
[350255578,1737741035036,-500.0,0.0001918,2]
[350255579,1737741035046,-500.0,0.0001918,2]
[350255580,1737741035056,-195.976675,0.0001918,2]
[350255581,1737741035065,-500.0,0.0001918,2]
[350255582,1737741035075,-1063.64,0.0001918,2]
[350255583,1737741035084,-553.14121323,0.0001918,2]
[350255584,1737741035093,-512.59,0.0001918,2]
[350255585,1737741035102,-500.0,0.0001918,2]
[350255586,1737741035112,-500.0,0.0001918,2]
[350255587,1737741035121,-500.0,0.0001918,2]
[350255588,1737741035131,-500.0,0.0001918,2]
[350255589,1737741035140,-1342.9,0.0001918,2]
[350255590,1737741035149,-176.665854,0.0001918,2]
[350255591,1737741035159,-500.0,0.0001918,2]
[350255592,1737741035168,-500.0,0.0001918,2]
[350255593,1737741035177,-1102.03,0.0001918,2]
[350255594,1737741035187,-500.0,0.0001918,2]
[350255595,1737741035197,-500.0,0.0001918,2]
[350255596,1737741035206,-500.0,0.0001918,2]
[350255597,1737741035216,-500.0,0.0001918,2]
[350255598,1737741035225,-518.98,0.0001918,2]
[350255599,1737741035235,-530.04,0.0001918,2]
[350255600,1737741035245,-491.11020414,0.0001918,2]
[350255601,1737741035254,-500.0,0.0001918,2]
[350255602,1737741035264,-500.0,0.0001918,2]
[350255603,1737741035274,-500.0,0.0001918,2]
[350255604,1737741035283,-500.0,0.0001918,2]
[350255605,1737741035294,-500.0,0.0001918,2]
[350255606,1737741035303,-500.0,0.0001918,2]
[350255607,1737741035313,-500.0,0.0001918,2]
[350255608,1737741035323,-500.0,0.0001918,2]
[350255609,1737741035332,-500.0,0.0001918,2]
[350255610,1737741035342,-500.0,0.0001918,2]
[350255611,1737741035352,-500.0,0.0001918,2]
[350255612,1737741035361,-500.0,0.0001918,2]
[350255613,1737741035371,-500.0,0.0001918,2]
[350255614,1737741035380,-500.0,0.0001918,2]
[350255615,1737741035390,-500.0,0.0001918,2]
[350255616,1737741035399,-907.55,0.0001918,2]
[350255617,1737741035409,-500.0,0.0001918,2]
[350255618,1737741035418,-500.0,0.0001918,2]
[350255619,1737741035427,-2350.49,0.0001918,2]
[350255620,1737741035437,-500.0,0.0001918,2]
[350255621,1737741035447,-2000.0,0.0001918,2]
[350255622,1737741035456,-2000.0,0.0001918,2]
[350255623,1737741035466,-384.06,0.0001918,2]
[350255624,1737741035475,-500.0,0.00019181,2]
[350255625,1737741035486,-500.0,0.00019181,2]
[350255626,1737741035496,-472.57022668,0.00019181,2]
[350255627,1737741035505,-259.3341937,0.00019181,2]
[350255628,1737741035515,-560.8,0.00019181,2]
[350255629,1737741035525,-500.0,0.00019181,2]
[350255630,1737741035537,-500.0,0.00019181,2]
[350255631,1737741035546,-500.0,0.00019181,2]
[350255632,1737741035557,-500.0,0.00019181,2]
[350255633,1737741035566,-500.0,0.00019181,2]
[350255634,1737741035575,-500.0,0.00019181,2]
[350255635,1737741035586,-500.0,0.00019181,2]
[350255636,1737741035595,-500.0,0.00019181,2]
[350255637,1737741035605,-500.0,0.00019181,2]
[350255638,1737741035615,-500.0,0.00019181,2]
[350255639,1737741035624,-500.0,0.00019181,2]
[350255640,1737741035634,-500.0,0.00019181,2]
[350255641,1737741035643,-500.0,0.00019181,2]
[350255642,1737741035653,-500.0,0.00019181,2]
[350255643,1737741035663,-500.0,0.00019181,2]
[350255644,1737741035672,-500.0,0.00019181,2]
[350255645,1737741035681,-500.0,0.00019181,2]
[350255646,1737741035691,-488.88,0.00019181,2]
[350255647,1737741035700,-500.0,0.00019181,2]
[350255648,1737741035710,-500.0,0.00019181,2]
[350255649,1737741035719,-500.0,0.00019181,2]
[350255650,1737741035729,-500.0,0.00019181,2]
[350255651,1737741035739,-500.0,0.00019181,2]
[350255652,1737741035748,-500.0,0.00019181,2]
[350255653,1737741035757,-500.0,0.00019181,2]
[350255654,1737741035767,-500.0,0.00019181,2]
[350255655,1737741035776,-500.0,0.00019181,2]
[350255656,1737741035789,-500.0,0.00019181,2]
[350255657,1737741035799,-500.0,0.00019181,2]
[350255658,1737741035809,-500.0,0.00019181,2]
[350255659,1737741035819,-500.0,0.00019181,2]
[350255660,1737741035828,-500.0,0.00019181,2]
[350255661,1737741035840,-1953.1,0.000192,2]
[350255662,1737741035850,-150.0,0.00019212,2]
[350255663,1737741035861,-313.75077617,0.00019218,2]
[350255664,1737741035870,-500.0,0.00019245,2]
[350255665,1737741035880,-176.1708181,0.00019262,2]
[350255666,1737741035889,-313.75077615,0.00019294,2]
[350255667,1737741035899,-500.0,0.00019299,2]
[350255668,1737741035908,-683.13,0.00019299,2]
[350255669,1737741035918,-500.0,0.00019299,2]
[350255670,1737741035928,-500.0,0.00019299,2]
[350255671,1737741035938,-500.0,0.00019299,2]
[350255672,1737741035947,-500.0,0.00019299,2]
[350255673,1737741035957,-581.75,0.00019299,2]
[350255674,1737741035966,-500.0,0.00019299,2]
[350255675,1737741035976,-500.0,0.00019299,2]
[350255676,1737741035986,-578.58,0.00019299,2]
[350255677,1737741035995,-500.0,0.00019299,2]
[350255678,1737741036004,-500.0,0.00019299,2]
[350255679,1737741036014,-500.0,0.00019299,2]